bitfinex/quotes_BTCUSD_20250127
["timestamp","ask_amount","ask_price","bid_price","bid_amount"]
[1738007255780,0.00029779,99671.0,99670.0,0.49172308]
[1738007256237,0.00129779,99671.0,99670.0,0.50072308]
[1738007256615,0.00129779,99671.0,99670.0,0.49772308]
[1738007257092,0.99660928,99671.0,99670.0,0.50072308]
[1738007257705,0.99660928,99671.0,99670.0,0.49772308]
[1738007258148,0.99660928,99671.0,99670.0,0.50172308]
[1738007260804,0.99660928,99671.0,99670.0,0.18327579]
[1738007261010,0.99660928,99671.0,99670.0,0.02245905]
[1738007261142,0.99660928,99671.0,99670.0,0.01319988]
[1738007261347,1.14710428,99671.0,99670.0,0.01319988]
[1738007261574,1.16557068,99671.0,99670.0,0.01319988]
[1738007262592,1.16557068,99671.0,99670.0,0.00419988]
[1738007262730,1.16557068,99671.0,99670.0,0.00719988]
[1738007263311,1.16557068,99671.0,99670.0,0.00319988]
[1738007263556,1.16557068,99671.0,99670.0,0.00519988]
[1738007266174,1.16586804,99671.0,99670.0,0.00519988]
[1738007266405,1.16581693,99671.0,99670.0,0.00519988]
[1738007266971,1.1460492,99671.0,99670.0,0.00519988]
[1738007267202,1.16581693,99671.0,99670.0,0.00519988]
[1738007268086,0.9955542,99671.0,99670.0,0.00519988]
[1738007268328,0.9955542,99671.0,99670.0,0.42604317]
[1738007268756,0.9955542,99671.0,99670.0,0.43527976]
[1738007269196,0.9955542,99671.0,99670.0,0.16443647]
[1738007269405,1.1460492,99671.0,99670.0,0.01443647]
[1738007269736,0.9955542,99671.0,99670.0,0.15569588]
[1738007269966,0.9955542,99671.0,99670.0,0.30569588]
[1738007270304,0.9955542,99671.0,99670.0,0.4122748]
[1738007271563,0.9955542,99671.0,99670.0,0.4352748]
[1738007271771,0.9955542,99671.0,99670.0,0.44514164]
[1738007273433,0.9955542,99671.0,99670.0,0.46498869]
[1738007273853,0.9955542,99671.0,99670.0,0.59972096]
[1738007273854,0.00029736,99671.0,99670.0,0.59972096]
[1738007274052,0.50269004,99691.0,99690.0,0.300466]
[1738007274270,0.50269004,99691.0,99690.0,0.42081329]
[1738007274470,0.50269004,99691.0,99690.0,0.43002947]
[1738007274827,0.50269004,99691.0,99690.0,0.43008093]
[1738007275501,0.50369004,99691.0,99690.0,0.43708093]
[1738007275833,0.50369004,99691.0,99690.0,0.41408093]
[1738007276051,0.50369004,99691.0,99690.0,0.31673364]
[1738007276263,0.50369004,99691.0,99690.0,0.16626764]
[1738007276478,0.65415404,99691.0,99690.0,0.16926764]
[1738007276729,0.65415404,99691.0,99690.0,0.16005146]
[1738007276936,0.50369004,99691.0,99690.0,0.16005146]
[1738007277329,0.50369004,99691.0,99690.0,0.16924065]
[1738007277500,0.50369004,99691.0,99690.0,0.31670665]
[1738007277884,0.50269004,99691.0,99690.0,0.16124065]
[1738007278093,0.50269004,99691.0,99690.0,0.31170665]
[1738007278308,0.50269004,99691.0,99690.0,0.43205394]
[1738007278685,0.50298719,99691.0,99690.0,0.43605394]
[1738007279184,0.50298719,99691.0,99690.0,0.43405394]
[1738007279364,0.50298719,99691.0,99690.0,0.43205394]
[1738007279778,0.50398719,99691.0,99690.0,0.43705394]
[1738007280135,0.50398719,99691.0,99690.0,0.44005394]
[1738007280800,0.50398719,99691.0,99690.0,0.28958794]
[1738007281009,0.65445119,99691.0,99690.0,0.01924065]
[1738007281437,0.50398719,99691.0,99690.0,0.01005146]
[1738007281831,0.50398719,99691.0,99690.0,0.01857184]
[1738007282057,0.65345119,99691.0,99690.0,0.01157184]
[1738007282252,0.65345119,99691.0,99690.0,0.00305146]
[1738007282500,0.65345119,99691.0,99690.0,0.00505146]
[1738007282717,0.65345119,99691.0,99690.0,0.00705146]
[1738007283300,0.65345119,99691.0,99690.0,0.00505146]
[1738007283476,0.65345119,99691.0,99690.0,0.00705146]
[1738007284877,0.50298719,99691.0,99690.0,0.00705146]
[1738007285091,0.50298719,99691.0,99690.0,0.15751746]
[1738007285332,0.50298719,99691.0,99690.0,0.42786475]
[1738007285537,0.50298719,99691.0,99690.0,0.43638513]
[1738007286595,0.00029715,99691.0,99690.0,0.45649362]
[1738007287218,0.00029715,99691.0,99690.0,0.45449362]
[1738007287483,0.00029715,99691.0,99690.0,0.44749362]
[1738007287944,0.00029715,99691.0,99690.0,0.44249362]
[1738007288124,0.00129715,99691.0,99690.0,0.44949362]
[1738007288535,0.00029715,99691.0,99690.0,0.44249362]
[1738007288896,0.00129715,99691.0,99690.0,0.44849362]
[1738007289108,0.00129715,99691.0,99690.0,0.45249362]
[1738007289320,0.00129715,99691.0,99690.0,0.18214633]
[1738007289495,0.00129715,99691.0,99690.0,0.17814633]
[1738007289672,0.00129715,99691.0,99690.0,0.16962595]
[1738007289894,0.00129715,99691.0,99690.0,0.18114044]
[1738007290294,0.00129715,99691.0,99690.0,0.17814044]
[1738007290494,0.00029715,99691.0,99690.0,0.17114044]
[1738007290718,0.00129715,99691.0,99690.0,0.18014044]
[1738007291069,0.00029715,99691.0,99690.0,0.17114044]
[1738007291414,0.00129715,99691.0,99690.0,0.17814044]
[1738007295192,0.00129715,99691.0,99690.0,0.32814044]
[1738007295796,0.00129715,99691.0,99690.0,0.31803195]
[1738007296209,0.15176115,99691.0,99690.0,0.01756595]
[1738007296612,0.15176115,99691.0,99690.0,0.00905146]
[1738007297381,0.15076115,99691.0,99690.0,0.00205146]
[1738007297595,0.15177054,99691.0,99690.0,0.00605146]
[1738007297806,0.15076115,99691.0,99690.0,0.00605146]
[1738007298047,0.15076115,99691.0,99690.0,0.00405146]
[1738007298257,0.15177054,99691.0,99690.0,0.00405146]
[1738007298469,0.15177054,99691.0,99690.0,0.00605146]
[1738007299928,0.15076115,99691.0,99690.0,0.00605146]
[1738007300135,0.15177054,99691.0,99690.0,0.00605146]
[1738007300335,0.15076115,99691.0,99690.0,0.00605146]
[1738007301179,0.00029715,99691.0,99690.0,0.00605146]
[1738007301367,0.15076115,99691.0,99690.0,0.00605146]
[1738007301747,0.00029715,99691.0,99690.0,0.00605146]
[1738007302077,0.15076115,99691.0,99690.0,0.00605146]
[1738007303308,0.15177054,99691.0,99690.0,0.00605146]
[1738007303610,0.17153827,99691.0,99690.0,0.00605146]
[1738007303828,0.39158556,99691.0,99690.0,0.00605146]
[1738007303972,0.39057617,99691.0,99690.0,0.00605146]
[1738007304407,0.29322888,99691.0,99690.0,0.00605146]
[1738007304589,0.29322888,99691.0,99690.0,0.00405146]
[1738007304796,0.12299715,99691.0,99690.0,5.146e-05]
[1738007305024,0.12399715,99691.0,99690.0,5.146e-05]
[1738007305230,0.27646115,99691.0,99690.0,5.146e-05]
[1738007305443,0.27346115,99691.0,99690.0,0.00859203]
[1738007305643,0.00029715,99691.0,99690.0,0.15051746]
[1738007305857,0.00129715,99691.0,99690.0,0.15905803]
[1738007306065,0.15176115,99691.0,99690.0,0.00859203]
[1738007306905,0.15376115,99691.0,99690.0,0.00859203]
[1738007307101,0.00129715,99691.0,99690.0,5.146e-05]
[1738007307367,0.00029715,99691.0,99690.0,0.00859141]
[1738007307545,0.15076115,99691.0,99690.0,0.00105146]
[1738007307753,0.00029715,99691.0,99690.0,0.16005741]
[1738007307959,0.00029715,99691.0,99690.0,0.00105146]
[1738007308179,0.15076115,99691.0,99690.0,0.00105146]
[1738007308388,0.15076115,99691.0,99690.0,0.00959056]
[1738007308969,0.00029715,99691.0,99690.0,0.00959056]
[1738007310665,0.00029715,99691.0,99690.0,0.16005656]
[1738007311508,0.00029715,99691.0,99690.0,0.00959056]
[1738007311872,0.00029715,99691.0,99690.0,0.16005656]
[1738007313413,0.15076115,99691.0,99690.0,0.00959056]
[1738007313618,0.25363827,99691.0,99690.0,0.00105146]
[1738007313838,0.39787617,99691.0,99690.0,0.00105146]
[1738007314896,0.39887617,99691.0,99690.0,0.00105146]
[1738007315076,0.40912013,99691.0,99690.0,0.00105146]
[1738007315276,0.40812013,99691.0,99690.0,0.00105146]
[1738007315480,0.40912013,99691.0,99690.0,0.00105146]
[1738007316561,0.50646742,99691.0,99690.0,0.00105146]
[1738007316880,0.50746742,99691.0,99690.0,0.00105146]
[1738007317101,0.50646742,99691.0,99690.0,5.146e-05]
[1738007317309,0.50546742,99691.0,99690.0,5.146e-05]
[1738007317521,0.50646742,99691.0,99690.0,5.146e-05]
[1738007317958,0.40912013,99691.0,99690.0,5.146e-05]
[1738007318366,0.40812013,99691.0,99690.0,5.146e-05]
[1738007318589,0.41012013,99691.0,99690.0,5.146e-05]
[1738007318731,0.40812013,99691.0,99690.0,5.146e-05]
[1738007319179,0.41012013,99691.0,99690.0,5.146e-05]
[1738007319509,0.50746742,99691.0,99690.0,5.146e-05]
[1738007319724,0.41012013,99691.0,99690.0,5.146e-05]
[1738007320385,0.41012013,99691.0,99660.0,0.15272133]
[1738007320386,0.29597773,99661.0,99660.0,0.00272133]
[1738007320600,2.16432655,99661.0,99660.0,7.5e-07]
[1738007320800,0.25145491,99642.0,99597.0,0.200807]
[1738007321010,1.91466236,99642.0,99586.0,0.0765]
[1738007321223,2.16200965,99642.0,99641.0,0.00014889]
[1738007321433,2.16200965,99642.0,99641.0,0.00014847]
[1738007321834,2.17200965,99642.0,99641.0,0.00014847]
[1738007322047,2.20018768,99642.0,99641.0,4.7e-07]
[1738007322260,0.34507791,99627.0,99623.0,4.2e-07]
[1738007322464,2.02508222,99627.0,99626.0,0.00029027]
[1738007322872,2.05293889,99627.0,99626.0,2.7e-07]
[1738007323094,2.10183889,99627.0,99626.0,2.7e-07]
[1738007323336,2.10183889,99627.0,99623.0,4.2e-07]
[1738007323337,0.42008291,99624.0,99623.0,4.2e-07]
[1738007323543,0.5174302,99624.0,99623.0,0.00014895]
[1738007323747,0.61477749,99624.0,99623.0,0.00014895]
[1738007324590,0.51477749,99624.0,99623.0,0.00014895]
[1738007324796,0.51577749,99624.0,99623.0,0.00014895]
[1738007324996,0.61577749,99624.0,99623.0,9.5e-07]
[1738007325233,0.64124062,99624.0,99623.0,9.5e-07]
[1738007325548,0.250596,99604.0,99573.0,0.150643]
[1738007325747,1.36277169,99604.0,99603.0,0.0006346]
[1738007326161,1.86546173,99604.0,99603.0,0.0006346]
[1738007326771,1.95036173,99604.0,99603.0,0.0006346]
[1738007328060,1.94936173,99604.0,99603.0,0.0006346]
[1738007328257,2.04870902,99604.0,99603.0,0.0006346]
[1738007328460,2.04770902,99604.0,99603.0,0.0006346]
[1738007328646,2.04570902,99604.0,99603.0,0.0006346]
[1738007328845,2.04770902,99604.0,99603.0,0.0006346]
[1738007329266,2.04870902,99604.0,99603.0,0.0006346]
[1738007330484,2.0589189,99604.0,99603.0,0.0006346]
[1738007330644,1.96157161,99604.0,99603.0,0.0006346]
[1738007330840,1.85401444,99604.0,99603.0,0.0006346]
[1738007331085,1.50100153,99604.0,99603.0,0.1512316]
[1738007331286,1.50100153,99604.0,99603.0,0.0006346]
[1738007331519,1.65159753,99604.0,99603.0,0.00872705]
[1738007331722,1.64859753,99604.0,99603.0,0.0006346]
[1738007332019,1.65059753,99604.0,99603.0,0.0006346]
[1738007332157,1.67011444,99604.0,99603.0,0.0006346]
[1738007332368,1.66811444,99604.0,99603.0,0.0006346]
[1738007332621,1.66811444,99604.0,99603.0,0.0046346]
[1738007332781,1.51751844,99604.0,99603.0,0.0046346]
[1738007333106,1.49800153,99604.0,99603.0,0.1552316]
[1738007333482,1.49800153,99604.0,99603.0,0.16332405]
[1738007333719,1.49800153,99604.0,99603.0,0.16532405]
[1738007334750,1.49800153,99604.0,99603.0,0.43567134]
[1738007336125,0.99531149,99604.0,99603.0,0.43567134]
[1738007337323,0.99531149,99604.0,99603.0,0.42967134]
[1738007337683,0.99631149,99604.0,99603.0,0.44267134]
[1738007338230,0.99631149,99604.0,99603.0,0.43867134]
[1738007338445,0.99531149,99604.0,99603.0,0.42967134]
[1738007338676,0.99531149,99604.0,99603.0,0.43467134]
[1738007338894,0.99631149,99604.0,99603.0,0.44367134]
[1738007339099,0.99631149,99604.0,99603.0,0.45415443]
[1738007339570,0.001,99604.0,99603.0,0.45415443]
[1738007340113,0.001,99604.0,99603.0,0.44367134]
[1738007340312,0.001,99604.0,99603.0,0.42067134]
[1738007340313,0.99631149,99604.0,99603.0,0.42067134]
[1738007340524,0.99631149,99604.0,99603.0,0.02272705]
[1738007340729,0.99631149,99604.0,99603.0,0.0146346]
[1738007340973,0.99631149,99604.0,99603.0,0.1652316]
[1738007341421,0.99631149,99604.0,99603.0,0.02170449]
[1738007341633,0.99531149,99604.0,99603.0,0.0036346]
[1738007341831,1.14690749,99604.0,99603.0,0.0096346]
[1738007342058,0.99631149,99604.0,99603.0,0.0096346]
[1738007342344,0.99631149,99604.0,99603.0,0.3072316]
[1738007342765,0.99631149,99604.0,99603.0,0.31931481]
[1738007343398,0.99631149,99604.0,99603.0,0.16871781]
[1738007343583,0.99631149,99604.0,99603.0,0.32231481]
[1738007344100,0.99631149,99604.0,99603.0,0.31931481]
[1738007344228,0.99531149,99604.0,99603.0,0.31531481]
[1738007344436,0.99731149,99604.0,99603.0,0.31531481]
[1738007344846,0.99531149,99604.0,99603.0,0.31531481]
[1738007345044,0.99631149,99604.0,99603.0,0.32231481]
[1738007345244,0.99631149,99604.0,99603.0,0.32031481]
[1738007345647,1.14690749,99604.0,99603.0,0.01971781]
[1738007346049,1.14690749,99604.0,99603.0,0.0076346]
[1738007346728,1.14590749,99604.0,99603.0,0.0036346]
[1738007347066,1.14590749,99604.0,99603.0,0.0066346]
[1738007347293,1.14590749,99604.0,99603.0,0.0036346]
[1738007347495,1.14590749,99604.0,99603.0,0.0006346]
[1738007347942,1.14690749,99604.0,99603.0,0.0076346]
[1738007348085,1.53761898,99604.0,99603.0,0.0076346]
[1738007348561,1.58671898,99604.0,99603.0,0.0076346]
[1738007348753,1.58571898,99604.0,99603.0,0.0006346]
[1738007350166,1.58671898,99604.0,99603.0,0.0006346]
[1738007350423,1.58671898,99604.0,99603.0,0.0016346]
[1738007350615,1.58571898,99604.0,99603.0,0.0016346]
[1738007350787,1.58571898,99604.0,99603.0,0.0006346]
[1738007350990,1.58671898,99604.0,99603.0,0.0006346]
[1738007351191,1.58871898,99604.0,99603.0,0.0006346]
[1738007351392,1.49137169,99604.0,99603.0,0.0006346]
[1738007351594,1.27450749,99604.0,99603.0,0.0006346]
[1738007352019,1.2940244,99604.0,99603.0,0.0006346]
[1738007352425,1.3940244,99604.0,99603.0,0.0006346]
[1738007352915,1.3930244,99604.0,99603.0,0.0006346]
[1738007353307,1.3940244,99604.0,99603.0,0.0006346]
[1738007353591,1.3920244,99604.0,99603.0,0.0006346]
[1738007353763,1.48837169,99604.0,99603.0,0.0006346]
[1738007354016,1.49037169,99604.0,99603.0,0.0006346]
[1738007354266,1.3910244,99604.0,99603.0,0.0006346]
[1738007354671,1.3940244,99604.0,99603.0,0.0006346]
[1738007354843,1.14690749,99604.0,99603.0,0.0006346]
[1738007355286,1.1664244,99604.0,99603.0,0.0006346]
[1738007355626,0.99631149,99604.0,99603.0,0.0006346]
[1738007355824,0.001,99604.0,99603.0,0.3012316]
[1738007356054,0.15057,99621.0,99614.0,0.15058]
[1738007356252,0.150572,99620.0,99612.0,0.200777]
[1738007356453,0.150574,99619.0,99615.0,0.0121142]
[1738007356661,0.01951691,99617.0,99607.0,0.150591]
[1738007356864,0.20077,99616.0,99603.0,0.1506346]
[1738007357065,0.150588,99610.0,99608.0,0.01211987]
[1738007357272,0.150588,99610.0,99603.0,0.3012306]
[1738007357273,1.49800153,99610.0,99603.0,0.3012306]
[1738007357480,0.15059,99609.0,99603.0,0.1506346]
[1738007357660,0.15059,99609.0,99604.0,0.150596]
[1738007357882,1.49800153,99610.0,99608.0,0.150588]
[1738007358086,1.49800153,99610.0,99606.0,0.15]
[1738007358344,0.150591,99607.0,99606.0,0.15]
[1738007358681,0.150589,99609.0,99606.0,0.15]
[1738007358888,0.002,99609.0,99607.0,0.150591]
[1738007359069,1.49800153,99610.0,99607.0,0.150591]
[1738007359474,1.64858953,99610.0,99605.0,0.15]
[1738007359699,1.49800153,99610.0,99606.0,0.150593]
[1738007360169,1.64858853,99610.0,99605.0,0.15]
[1738007360377,0.150589,99609.0,99605.0,0.15]
[1738007361545,1.49800153,99610.0,99605.0,0.200792]
[1738007362490,0.150592,99607.0,99603.0,0.0006346]
[1738007362691,0.150596,99604.0,99603.0,0.0006346]
[1738007362914,0.1711223,99604.0,99603.0,0.0006346]
[1738007363267,0.41766959,99604.0,99603.0,0.0006346]
[1738007363451,0.4166602,99604.0,99603.0,0.0006346]
[1738007363655,0.42666618,99604.0,99603.0,0.0006346]
[1738007363880,0.52401347,99604.0,99603.0,0.0006346]
[1738007364086,0.42666618,99604.0,99603.0,0.0016346]
[1738007364540,0.50806618,99604.0,99603.0,0.0036346]
[1738007364925,0.50806618,99604.0,99603.0,0.0016346]
[1738007365329,0.51006618,99604.0,99603.0,0.0016346]
[1738007365530,0.51006618,99604.0,99603.0,0.0006346]
[1738007365745,0.60841347,99604.0,99603.0,0.0006346]
[1738007365947,0.17011691,99601.0,99600.0,6e-07]
[1738007366149,0.44977359,99601.0,99600.0,6e-07]
[1738007366347,0.17015991,99573.0,99572.0,0.01502104]
[1738007366552,0.17015991,99573.0,99571.0,0.0001418]
[1738007366553,0.17016091,99572.0,99571.0,0.0001418]
[1738007366750,0.2675082,99572.0,99571.0,0.0001418]
[1738007367717,0.26800115,99572.0,99571.0,0.0001418]
[1738007368024,0.26800115,99572.0,99571.0,0.0011418]
[1738007368025,0.17065386,99572.0,99571.0,0.0011418]
[1738007368250,0.17166325,99572.0,99571.0,0.0001418]
[1738007368588,0.00249295,99572.0,99571.0,0.0001418]
[1738007368797,0.15413695,99572.0,99571.0,0.0001418]
[1738007368999,0.00349295,99572.0,99571.0,0.0001418]
[1738007369533,0.00349295,99572.0,99571.0,0.1507878]
[1738007369933,0.00349295,99572.0,99571.0,0.16499937]
[1738007370346,0.00349295,99572.0,99571.0,0.01435337]
[1738007370696,0.00349295,99572.0,99571.0,0.0001418]
[1738007370910,0.00149295,99572.0,99571.0,0.0001418]
[1738007371114,0.00149295,99572.0,99571.0,0.1507878]
[1738007371322,0.00149295,99572.0,99571.0,0.1547878]
[1738007371509,0.00149295,99572.0,99571.0,0.16899937]
[1738007371680,0.00149295,99572.0,99571.0,0.31899937]
[1738007372077,0.00049295,99572.0,99571.0,0.43934666]
[1738007373279,0.00049295,99572.0,99571.0,0.44034666]
[1738007373744,0.00049295,99572.0,99571.0,0.45023248]
[1738007374693,0.00049295,99572.0,99571.0,0.44423248]
[1738007375192,0.00049295,99572.0,99571.0,0.44323248]
[1738007375407,0.00049295,99572.0,99571.0,0.44523248]
[1738007376625,0.00049295,99572.0,99571.0,0.44123248]
[1738007376904,0.00049295,99572.0,99571.0,0.44623248]
[1738007381558,5.45e-05,99572.0,99571.0,0.44623248]
[1738007385113,5.45e-05,99572.0,99571.0,0.45623248]
[1738007385317,5.45e-05,99572.0,99571.0,0.53913248]
[1738007386164,5.45e-05,99572.0,99571.0,0.53213248]
[1738007386406,0.0010545,99572.0,99571.0,0.54013248]
[1738007386608,0.0010545,99572.0,99571.0,0.54061557]
[1738007386856,0.0010545,99572.0,99571.0,0.54027408]
[1738007387008,0.0010545,99572.0,99571.0,0.54075717]
[1738007387586,0.0010545,99572.0,99571.0,0.54375717]
[1738007387787,0.0010545,99572.0,99571.0,0.55877225]
[1738007388551,0.0010545,99572.0,99571.0,0.55828916]
[1738007388755,0.0010545,99572.0,99571.0,0.55877225]
[1738007389372,0.99636599,99572.0,99571.0,0.44238916]
[1738007389576,1.14700999,99572.0,99571.0,0.14760136]
[1738007389697,1.23000999,99572.0,99571.0,0.04036825]
[1738007389900,1.30073336,99572.0,99571.0,0.02615668]
[1738007390124,1.35053336,99572.0,99571.0,0.02615668]
[1738007390566,1.35053336,99572.0,99571.0,0.02315668]
[1738007390770,0.99536599,99572.0,99571.0,0.01515668]
[1738007391016,0.99536599,99572.0,99571.0,0.01715668]
[1738007391239,0.99536599,99572.0,99571.0,0.0071416]
[1738007391438,0.99536599,99572.0,99571.0,0.17003763]
[1738007391638,0.99531149,99572.0,99571.0,0.12548889]
[1738007391824,0.99531149,99572.0,99571.0,0.44038492]
[1738007391954,0.99631149,99572.0,99571.0,0.43538492]
[1738007392151,0.99631149,99572.0,99571.0,0.28473892]
[1738007392372,0.99531149,99572.0,99571.0,0.28473892]
[1738007393013,0.99531149,99572.0,99571.0,0.43538492]
[1738007393434,0.99731149,99572.0,99571.0,0.43538492]
[1738007393719,0.99531149,99572.0,99571.0,0.42113489]
[1738007394008,0.99531149,99572.0,99571.0,0.42213489]
[1738007394208,0.99531149,99572.0,99571.0,0.43669833]
[1738007394424,1.14595549,99572.0,99571.0,0.16570504]
[1738007394623,1.14595549,99572.0,99571.0,0.1511416]
[1738007394826,1.14595549,99572.0,99571.0,0.1501416]
[1738007395263,0.99531149,99572.0,99571.0,0.42213489]
[1738007395419,0.99531149,99572.0,99571.0,0.43569833]
[1738007396117,0.99531149,99572.0,99571.0,0.16470504]
[1738007396118,1.14595549,99572.0,99571.0,0.16470504]
[1738007396535,0.99531149,99572.0,99571.0,0.3007876]
[1738007396942,0.150632,99581.0,99575.0,0.15]
[1738007397128,1.49800153,99581.0,99575.0,0.15014878]
[1738007397262,1.49800153,99581.0,99577.0,0.15]
[1738007397472,1.49800153,99581.0,99578.0,0.01455587]
[1738007397667,1.49800153,99581.0,99576.0,0.00014162]
[1738007397877,1.49800153,99581.0,99580.0,0.173632]
[1738007398079,0.50269004,99593.0,99581.0,0.173]
[1738007398328,0.50269004,99593.0,99592.0,0.323614]
[1738007398482,0.50269004,99593.0,99592.0,0.42096129]
[1738007398683,0.50269004,99593.0,99592.0,0.43548739]
[1738007399409,0.50269004,99593.0,99592.0,0.43562901]
[1738007400450,0.99531149,99596.0,99593.0,0.173]
[1738007400657,0.99531149,99596.0,99595.0,0.323609]
[1738007400944,0.99531149,99596.0,99595.0,0.43540791]
[1738007401561,0.00029736,99600.0,99599.0,0.300603]
[1738007401809,0.50269004,99621.0,99620.0,0.300572]
[1738007402013,0.50269004,99621.0,99620.0,0.42091929]
[1738007402220,0.50269004,99621.0,99620.0,0.43196701]
[1738007402882,0.50269004,99632.0,99622.0,0.150569]
[1738007403057,0.50269004,99632.0,99622.0,0.42191996]
[1738007403292,0.50269004,99632.0,99622.0,0.4319555]
[1738007403497,0.99531149,99630.0,99622.0,0.4319555]
[1738007403924,0.99531149,99630.0,99622.0,0.4356056]
[1738007404133,1.19605549,99630.0,99622.0,0.2850366]
[1738007404338,0.22686436,99623.0,99622.0,0.01468931]
[1738007404542,0.07629736,99623.0,99622.0,0.02468931]
[1738007404745,0.07629736,99623.0,99622.0,0.01]
[1738007404946,0.22686436,99623.0,99622.0,0.02466986]
[1738007405189,0.22686436,99623.0,99622.0,0.007]
[1738007405386,0.24638127,99623.0,99622.0,0.008]
[1738007405638,0.44372856,99623.0,99622.0,0.008]
[1738007406056,0.34638127,99623.0,99622.0,0.008]
[1738007406675,0.34638127,99623.0,99622.0,0.007]
[1738007406876,0.19581427,99623.0,99622.0,0.001]
[1738007407079,0.54713927,99623.0,99622.0,0.001]
[1738007407343,0.54713927,99623.0,99622.0,0.003]
[1738007407558,0.54713927,99623.0,99620.0,0.00014878]
[1738007407559,0.17008691,99621.0,99620.0,0.00014878]
[1738007407761,0.85303363,99621.0,99620.0,0.00014878]
[1738007407968,0.85202424,99621.0,99620.0,0.00014878]
[1738007408182,0.93250733,99621.0,99620.0,0.00014878]
[1738007408386,0.73516004,99621.0,99620.0,0.00014878]
[1738007408974,0.75467695,99621.0,99620.0,0.00014878]
[1738007409205,0.73516004,99621.0,99620.0,0.00014878]
[1738007409403,0.75467695,99621.0,99620.0,0.00014878]
[1738007409606,0.85467695,99621.0,99620.0,0.00014878]
[1738007409940,0.85867695,99621.0,99620.0,0.00014878]
[1738007410153,0.85567695,99621.0,99620.0,0.00014878]
[1738007410343,0.85767695,99621.0,99620.0,0.00014878]
[1738007410556,1.05237153,99621.0,99620.0,0.00014878]
[1738007410767,1.05037153,99621.0,99620.0,0.00014878]
[1738007410975,1.05337153,99621.0,99620.0,0.00014878]
[1738007411199,0.95202424,99621.0,99620.0,0.00014878]
[1738007411409,0.85497431,99621.0,99620.0,0.00014878]
[1738007411617,0.85597431,99621.0,99620.0,0.00014878]
[1738007412656,0.8364574,99621.0,99620.0,0.00014878]
[1738007413002,0.8354574,99621.0,99620.0,0.00014878]
[1738007413154,0.8364574,99621.0,99620.0,0.00014878]
[1738007413365,0.85897431,99621.0,99620.0,0.00014878]
[1738007413561,0.7354574,99621.0,99620.0,0.00014878]
[1738007414030,0.75897431,99621.0,99620.0,0.00014878]
[1738007414241,0.75597431,99621.0,99620.0,0.00014878]
[1738007414756,0.75797431,99621.0,99620.0,0.00014878]
[1738007414963,0.75897431,99621.0,99620.0,0.00014878]
[1738007415140,0.76197431,99621.0,99620.0,0.00014878]
[1738007416252,0.76097431,99621.0,99620.0,0.00014878]
[1738007416428,0.76197431,99621.0,99620.0,0.00014878]
[1738007420774,0.86197431,99621.0,99620.0,0.00014878]
[1738007423390,1.0084216,99621.0,99620.0,7.8e-07]
[1738007423533,1.0084216,99621.0,99599.0,0.0001416]
[1738007423534,0.39521891,99600.0,99599.0,0.0001416]
[1738007423733,1.99056773,99600.0,99599.0,0.0001416]
[1738007424905,1.99356773,99600.0,99599.0,0.0001416]
[1738007425585,1.99356773,99600.0,99599.0,6e-07]
[1738007425787,0.27016091,99572.0,99571.0,0.0001416]
[1738007425994,1.89626244,99572.0,99571.0,0.0001416]
[1738007427242,1.89634651,99572.0,99571.0,0.0001416]
[1738007427661,1.89634651,99572.0,99571.0,0.0021416]
[1738007428182,1.90735166,99572.0,99571.0,0.0001416]
[1738007428389,1.90935166,99572.0,99571.0,0.0001416]
[1738007428819,1.89934651,99572.0,99571.0,0.0001416]
[1738007430324,1.67124651,99572.0,99571.0,0.0001416]
[1738007430790,1.5010856,99572.0,99558.0,0.00100428]
[1738007431008,1.5010856,99572.0,99541.0,0.02012094]
[1738007431009,1.5000856,99572.0,99571.0,0.24799329]
[1738007431218,1.4980856,99572.0,99571.0,0.24799329]
[1738007431429,1.5010856,99572.0,99571.0,0.26100707]
[1738007431641,1.5010856,99572.0,99571.0,0.24799329]
[1738007431902,1.4990856,99572.0,99571.0,0.25580294]
[1738007432117,0.99639556,99572.0,99571.0,0.25628603]
[1738007432543,0.99639556,99572.0,99571.0,0.25580294]
[1738007432743,0.00108407,99572.0,99571.0,0.42928603]
[1738007432865,8.407e-05,99572.0,99571.0,0.42928603]
[1738007433094,7e-08,99572.0,99571.0,0.52348603]
[1738007433293,0.99531149,99591.0,99590.0,0.300617]
[1738007433508,0.50269004,99609.0,99598.0,0.01]
[1738007433723,0.0829,99647.0,99590.0,0.10513767]
[1738007433724,0.50269004,99619.0,99618.0,0.300575]
[1738007433927,0.50269004,99619.0,99618.0,0.39792229]
[1738007434137,0.00044611,99621.0,99620.0,0.300572]
[1738007434350,0.50313615,99621.0,99620.0,0.39791929]
[1738007434558,0.50313615,99621.0,99620.0,0.25511558]
[1738007434772,0.001,99609.0,99608.0,0.15059]
[1738007434977,1.49800153,99609.0,99598.0,0.200806]
[1738007435191,1.64858953,99609.0,99608.0,0.0077634]
[1738007435396,1.49800153,99609.0,99599.0,0.09734729]
[1738007435641,0.00100939,99608.0,99575.0,0.200853]
[1738007435849,0.01951691,99599.0,99576.0,0.09734729]
[1738007436061,0.150614,99593.0,99577.0,0.00776621]
[1738007436271,0.150614,99592.0,99587.0,0.150621]
[1738007436472,0.150614,99592.0,99588.0,0.09734729]
[1738007436713,0.150614,99592.0,99588.0,0.10510815]
[1738007437802,0.01951691,99596.0,99588.0,0.10710815]
[1738007438013,0.150613,99593.0,99588.0,0.25772715]
[1738007438220,0.150614,99592.0,99588.0,0.10434729]
[1738007438432,0.150606,99598.0,99589.0,0.15776038]
[1738007438587,1.64860553,99599.0,99592.0,0.150613]
[1738007438807,0.150606,99598.0,99592.0,0.150613]
[1738007439007,1.49800153,99599.0,99598.0,0.150605]
[1738007439207,1.49800153,99599.0,99595.0,0.300609]
[1738007439559,1.49800153,99599.0,99593.0,0.09734729]
[1738007439712,0.150608,99597.0,99596.0,0.00775698]
[1738007440057,0.150608,99597.0,99594.0,0.15]
[1738007440498,0.150608,99597.0,99595.0,0.00775747]
[1738007440730,1.49800153,99599.0,99595.0,0.00775747]
[1738007440945,0.150607,99597.0,99596.0,0.001]
[1738007441121,1.49800153,99599.0,99596.0,0.001]
[1738007441506,1.49800153,99599.0,99596.0,0.00875698]
[1738007441952,0.17012291,99597.0,99596.0,0.001]
[1738007442099,0.01951691,99563.0,99547.0,0.03476397]
[1738007442301,1.66817644,99563.0,99547.0,0.03476397]
[1738007442548,1.66817644,99563.0,99547.0,0.0150608]
[1738007442748,1.74357644,99563.0,99547.0,0.0150608]
[1738007443417,1.78867644,99563.0,99562.0,0.00563465]
[1738007443545,1.88602373,99563.0,99562.0,0.00563465]
[1738007444144,1.78867644,99563.0,99562.0,0.00563465]
[1738007445329,1.78867644,99563.0,99562.0,0.00463465]
[1738007445555,1.72405953,99563.0,99562.0,0.00463465]
[1738007445769,1.49800153,99563.0,99562.0,0.00063465]
[1738007445971,1.49800153,99563.0,99562.0,0.39864094]
[1738007446383,1.49800153,99563.0,99562.0,0.40807956]
[1738007446603,1.49800153,99563.0,99562.0,0.25742056]
[1738007446809,1.64865953,99563.0,99562.0,0.16007327]
[1738007447013,1.64865953,99563.0,99562.0,0.01007327]